{"text_format":"3","workbook":"xlsx","n_sheets":3,"sheets":["Départ","Anneau budgétaire","Data"],"not_rendered":{"charts":1,"defined_names":5},"read":"whole","date_system":"1900"}

{"sheet":"Départ","index":0,"n_rows":7,"n_cols":2,"rows_kept":7}
[null,"À propos du modèle"]
[null,"Gardez la trace de vos dépenses et économies mensuelles en utilisant ce modèle."]
[null,"Entrez les détails des dépenses dans la table et le revenu mensuel pour calculer les économies."]
[null,"Le graphique en anneau illustrant les dépenses et les économies se met à jour automatiquement."]
[null,"Remarque :"]
[null,"Des instructions supplémentaires ont été fournies dans la colonne A de la feuille de calcul « ANNEAU BUDGÉTAIRE ». Ce texte a été intentionnellement caché. Pour supprimer du texte, sélectionnez la colonne A, puis sélectionnez SUPPRIMER. Pour afficher le texte, sélectionnez la colonne A, puis modifiez la couleur de la police."]
[null,"Pour en apprendre davantage sur la table, appuyez sur SHIFT puis sur F10 dans la table, sélectionnez l'option TABLE, puis sélectionnez TEXTE DE REMPLACEMENT."]

{"sheet":"Anneau budgétaire","index":1,"n_rows":23,"n_cols":7,"rows_kept":23,"merged":[[0,1,0,2],[0,3,0,6],[1,2,4,4]]}
["Créez une roue budgétaire dans cette feuille de calcul. Le titre de la feuille de travail est dans la cellule à droite et l'astuce dans la cellule D1. D'autres instructions utiles sur l'utilisation de cette feuille de calcul se trouvent dans les cellules de cette colonne. Flèche vers le bas pour commencer.","Anneau budgétaire",null,"Remplissez la table dans ce modèle. Le graphique indiquera vos dépenses mensuelles par rapport à votre revenu mensuel. Il calculera également les pourcentages pour vous montrer combien vous économiserez ou avez économisé."]
["L'étiquette de revenu mensuel est dans la cellule de droite, le graphique en anneau illustrant les dépenses et les économies dans la cellule C2 et l'étiquette du montant des économies dans la cellule G2.","Revenu mensuel","Le graphique en anneau illustre la proportion des dépenses et des économies dans cette cellule.",{"$nulls":3},"Montants épargnés"]
["Entrez le revenu mensuel dans la cellule à droite. Le montant économisé est calculé automatiquement dans la cellule G3. L'instruction suivante est dans la cellule A6.",{"v":5738,"d":"5,738 $"},{"$nulls":4},{"$f":"Savings","v":{"v":2777,"d":"2,777 $"}}]
[{"$nulls":6},"Valeur calculée automatiquement"]
[]
["Entrez les détails dans la table des dépenses en commençant par la cellule de droite.","Dépenses","Catégorie","Montant","Fréquence","Montant mensuel","% du total"]
[null,"Assurance","Transport",{"v":300,"d":"300 $"},"Tous les 6 mois",{"$f":"IF('Anneau budgétaire'!$D$7:$D$23>0,IF('Anneau budgétaire'!$E$7:$E$23<>\"\",ROUND(IF('Anneau budgétaire'!$E$7:$E$23=\"Mensuel\",'Anneau budgétaire'!$D$7:$D$23,IF('Anneau budgétaire'!$E$7:$E$23=\"Hebdomadaire\",'Anneau budgétaire'!$D$7:$D$23*4,IF('Anneau budgétaire'!$E$7:$E$23=\"Trimestrielle\",'Anneau budgétaire'!$D$7:$D$23/3,IF('Anneau budgétaire'!$E$7:$E$23=\"Tous les 6 mois\",'Anneau budgétaire'!$D$7:$D$23/6,IF('Anneau budgétaire'!$E$7:$E$23=\"Annuel\",'Anneau budgétaire'!$D$7:$D$23/12,IF('Anneau budgétaire'!$E$7:$E$23=\"Aux deux semaines\",'Anneau budgétaire'!$D$7:$D$23*2,IF('Anneau budgétaire'!$E$7:$E$23=\"Aux deux mois\",'Anneau budgétaire'!$D$7:$D$23/2,\"\"))))))),0),\"\"),\"\")","v":{"v":50,"d":"50 $"}},{"$f":"IF('Anneau budgétaire'!$F$7:$F$23<>\"\",'Anneau budgétaire'!$F$7:$F$23/Income,\"\")","v":{"v":0.00871383757406762,"d":"1%"}}]
[null,"Gaz","Transport",{"v":25,"d":"25 $"},"Hebdomadaire",{"$f":"IF('Anneau budgétaire'!$D$7:$D$23>0,IF('Anneau budgétaire'!$E$7:$E$23<>\"\",ROUND(IF('Anneau budgétaire'!$E$7:$E$23=\"Mensuel\",'Anneau budgétaire'!$D$7:$D$23,IF('Anneau budgétaire'!$E$7:$E$23=\"Hebdomadaire\",'Anneau budgétaire'!$D$7:$D$23*4,IF('Anneau budgétaire'!$E$7:$E$23=\"Trimestrielle\",'Anneau budgétaire'!$D$7:$D$23/3,IF('Anneau budgétaire'!$E$7:$E$23=\"Tous les 6 mois\",'Anneau budgétaire'!$D$7:$D$23/6,IF('Anneau budgétaire'!$E$7:$E$23=\"Annuel\",'Anneau budgétaire'!$D$7:$D$23/12,IF('Anneau budgétaire'!$E$7:$E$23=\"Aux deux semaines\",'Anneau budgétaire'!$D$7:$D$23*2,IF('Anneau budgétaire'!$E$7:$E$23=\"Aux deux mois\",'Anneau budgétaire'!$D$7:$D$23/2,\"\"))))))),0),\"\"),\"\")","v":{"v":100,"d":"100 $"}},{"$f":"IF('Anneau budgétaire'!$F$7:$F$23<>\"\",'Anneau budgétaire'!$F$7:$F$23/Income,\"\")","v":{"v":0.01742767514813524,"d":"2%"}}]
[null,"Paiement de voiture","Transport",{"v":200,"d":"200 $"},"Mensuel",{"$f":"IF('Anneau budgétaire'!$D$7:$D$23>0,IF('Anneau budgétaire'!$E$7:$E$23<>\"\",ROUND(IF('Anneau budgétaire'!$E$7:$E$23=\"Mensuel\",'Anneau budgétaire'!$D$7:$D$23,IF('Anneau budgétaire'!$E$7:$E$23=\"Hebdomadaire\",'Anneau budgétaire'!$D$7:$D$23*4,IF('Anneau budgétaire'!$E$7:$E$23=\"Trimestrielle\",'Anneau budgétaire'!$D$7:$D$23/3,IF('Anneau budgétaire'!$E$7:$E$23=\"Tous les 6 mois\",'Anneau budgétaire'!$D$7:$D$23/6,IF('Anneau budgétaire'!$E$7:$E$23=\"Annuel\",'Anneau budgétaire'!$D$7:$D$23/12,IF('Anneau budgétaire'!$E$7:$E$23=\"Aux deux semaines\",'Anneau budgétaire'!$D$7:$D$23*2,IF('Anneau budgétaire'!$E$7:$E$23=\"Aux deux mois\",'Anneau budgétaire'!$D$7:$D$23/2,\"\"))))))),0),\"\"),\"\")","v":{"v":200,"d":"200 $"}},{"$f":"IF('Anneau budgétaire'!$F$7:$F$23<>\"\",'Anneau budgétaire'!$F$7:$F$23/Income,\"\")","v":{"v":0.03485535029627048,"d":"3%"}}]
[null,"Hypothèque","Maison",{"v":1600,"d":"1,600 $"},"Mensuel",{"$f":"IF('Anneau budgétaire'!$D$7:$D$23>0,IF('Anneau budgétaire'!$E$7:$E$23<>\"\",ROUND(IF('Anneau budgétaire'!$E$7:$E$23=\"Mensuel\",'Anneau budgétaire'!$D$7:$D$23,IF('Anneau budgétaire'!$E$7:$E$23=\"Hebdomadaire\",'Anneau budgétaire'!$D$7:$D$23*4,IF('Anneau budgétaire'!$E$7:$E$23=\"Trimestrielle\",'Anneau budgétaire'!$D$7:$D$23/3,IF('Anneau budgétaire'!$E$7:$E$23=\"Tous les 6 mois\",'Anneau budgétaire'!$D$7:$D$23/6,IF('Anneau budgétaire'!$E$7:$E$23=\"Annuel\",'Anneau budgétaire'!$D$7:$D$23/12,IF('Anneau budgétaire'!$E$7:$E$23=\"Aux deux semaines\",'Anneau budgétaire'!$D$7:$D$23*2,IF('Anneau budgétaire'!$E$7:$E$23=\"Aux deux mois\",'Anneau budgétaire'!$D$7:$D$23/2,\"\"))))))),0),\"\"),\"\")","v":{"v":1600,"d":"1,600 $"}},{"$f":"IF('Anneau budgétaire'!$F$7:$F$23<>\"\",'Anneau budgétaire'!$F$7:$F$23/Income,\"\")","v":{"v":0.27884280237016384,"d":"28%"}}]
[null,"Câble","Maison",{"v":60,"d":"60 $"},"Mensuel",{"$f":"IF('Anneau budgétaire'!$D$7:$D$23>0,IF('Anneau budgétaire'!$E$7:$E$23<>\"\",ROUND(IF('Anneau budgétaire'!$E$7:$E$23=\"Mensuel\",'Anneau budgétaire'!$D$7:$D$23,IF('Anneau budgétaire'!$E$7:$E$23=\"Hebdomadaire\",'Anneau budgétaire'!$D$7:$D$23*4,IF('Anneau budgétaire'!$E$7:$E$23=\"Trimestrielle\",'Anneau budgétaire'!$D$7:$D$23/3,IF('Anneau budgétaire'!$E$7:$E$23=\"Tous les 6 mois\",'Anneau budgétaire'!$D$7:$D$23/6,IF('Anneau budgétaire'!$E$7:$E$23=\"Annuel\",'Anneau budgétaire'!$D$7:$D$23/12,IF('Anneau budgétaire'!$E$7:$E$23=\"Aux deux semaines\",'Anneau budgétaire'!$D$7:$D$23*2,IF('Anneau budgétaire'!$E$7:$E$23=\"Aux deux mois\",'Anneau budgétaire'!$D$7:$D$23/2,\"\"))))))),0),\"\"),\"\")","v":{"v":60,"d":"60 $"}},{"$f":"IF('Anneau budgétaire'!$F$7:$F$23<>\"\",'Anneau budgétaire'!$F$7:$F$23/Income,\"\")","v":{"v":0.010456605088881143,"d":"1%"}}]
[null,"Soirée cinéma","Divertissement",{"v":70,"d":"70 $"},"Mensuel",{"$f":"IF('Anneau budgétaire'!$D$7:$D$23>0,IF('Anneau budgétaire'!$E$7:$E$23<>\"\",ROUND(IF('Anneau budgétaire'!$E$7:$E$23=\"Mensuel\",'Anneau budgétaire'!$D$7:$D$23,IF('Anneau budgétaire'!$E$7:$E$23=\"Hebdomadaire\",'Anneau budgétaire'!$D$7:$D$23*4,IF('Anneau budgétaire'!$E$7:$E$23=\"Trimestrielle\",'Anneau budgétaire'!$D$7:$D$23/3,IF('Anneau budgétaire'!$E$7:$E$23=\"Tous les 6 mois\",'Anneau budgétaire'!$D$7:$D$23/6,IF('Anneau budgétaire'!$E$7:$E$23=\"Annuel\",'Anneau budgétaire'!$D$7:$D$23/12,IF('Anneau budgétaire'!$E$7:$E$23=\"Aux deux semaines\",'Anneau budgétaire'!$D$7:$D$23*2,IF('Anneau budgétaire'!$E$7:$E$23=\"Aux deux mois\",'Anneau budgétaire'!$D$7:$D$23/2,\"\"))))))),0),\"\"),\"\")","v":{"v":70,"d":"70 $"}},{"$f":"IF('Anneau budgétaire'!$F$7:$F$23<>\"\",'Anneau budgétaire'!$F$7:$F$23/Income,\"\")","v":{"v":0.012199372603694667,"d":"1%"}}]
[null,"Espadrilles","Divers",{"v":300,"d":"300 $"},"Annuel",{"$f":"IF('Anneau budgétaire'!$D$7:$D$23>0,IF('Anneau budgétaire'!$E$7:$E$23<>\"\",ROUND(IF('Anneau budgétaire'!$E$7:$E$23=\"Mensuel\",'Anneau budgétaire'!$D$7:$D$23,IF('Anneau budgétaire'!$E$7:$E$23=\"Hebdomadaire\",'Anneau budgétaire'!$D$7:$D$23*4,IF('Anneau budgétaire'!$E$7:$E$23=\"Trimestrielle\",'Anneau budgétaire'!$D$7:$D$23/3,IF('Anneau budgétaire'!$E$7:$E$23=\"Tous les 6 mois\",'Anneau budgétaire'!$D$7:$D$23/6,IF('Anneau budgétaire'!$E$7:$E$23=\"Annuel\",'Anneau budgétaire'!$D$7:$D$23/12,IF('Anneau budgétaire'!$E$7:$E$23=\"Aux deux semaines\",'Anneau budgétaire'!$D$7:$D$23*2,IF('Anneau budgétaire'!$E$7:$E$23=\"Aux deux mois\",'Anneau budgétaire'!$D$7:$D$23/2,\"\"))))))),0),\"\"),\"\")","v":{"v":25,"d":"25 $"}},{"$f":"IF('Anneau budgétaire'!$F$7:$F$23<>\"\",'Anneau budgétaire'!$F$7:$F$23/Income,\"\")","v":{"v":0.00435691878703381,"d":"0%"}}]
[null,"Nourriture pour chiens","Divers",{"v":60,"d":"60 $"},"Mensuel",{"$f":"IF('Anneau budgétaire'!$D$7:$D$23>0,IF('Anneau budgétaire'!$E$7:$E$23<>\"\",ROUND(IF('Anneau budgétaire'!$E$7:$E$23=\"Mensuel\",'Anneau budgétaire'!$D$7:$D$23,IF('Anneau budgétaire'!$E$7:$E$23=\"Hebdomadaire\",'Anneau budgétaire'!$D$7:$D$23*4,IF('Anneau budgétaire'!$E$7:$E$23=\"Trimestrielle\",'Anneau budgétaire'!$D$7:$D$23/3,IF('Anneau budgétaire'!$E$7:$E$23=\"Tous les 6 mois\",'Anneau budgétaire'!$D$7:$D$23/6,IF('Anneau budgétaire'!$E$7:$E$23=\"Annuel\",'Anneau budgétaire'!$D$7:$D$23/12,IF('Anneau budgétaire'!$E$7:$E$23=\"Aux deux semaines\",'Anneau budgétaire'!$D$7:$D$23*2,IF('Anneau budgétaire'!$E$7:$E$23=\"Aux deux mois\",'Anneau budgétaire'!$D$7:$D$23/2,\"\"))))))),0),\"\"),\"\")","v":{"v":60,"d":"60 $"}},{"$f":"IF('Anneau budgétaire'!$F$7:$F$23<>\"\",'Anneau budgétaire'!$F$7:$F$23/Income,\"\")","v":{"v":0.010456605088881143,"d":"1%"}}]
[null,"Assurance animal","Divers",{"v":70,"d":"70 $"},"Annuel",{"$f":"IF('Anneau budgétaire'!$D$7:$D$23>0,IF('Anneau budgétaire'!$E$7:$E$23<>\"\",ROUND(IF('Anneau budgétaire'!$E$7:$E$23=\"Mensuel\",'Anneau budgétaire'!$D$7:$D$23,IF('Anneau budgétaire'!$E$7:$E$23=\"Hebdomadaire\",'Anneau budgétaire'!$D$7:$D$23*4,IF('Anneau budgétaire'!$E$7:$E$23=\"Trimestrielle\",'Anneau budgétaire'!$D$7:$D$23/3,IF('Anneau budgétaire'!$E$7:$E$23=\"Tous les 6 mois\",'Anneau budgétaire'!$D$7:$D$23/6,IF('Anneau budgétaire'!$E$7:$E$23=\"Annuel\",'Anneau budgétaire'!$D$7:$D$23/12,IF('Anneau budgétaire'!$E$7:$E$23=\"Aux deux semaines\",'Anneau budgétaire'!$D$7:$D$23*2,IF('Anneau budgétaire'!$E$7:$E$23=\"Aux deux mois\",'Anneau budgétaire'!$D$7:$D$23/2,\"\"))))))),0),\"\"),\"\")","v":{"v":6,"d":"6 $"}},{"$f":"IF('Anneau budgétaire'!$F$7:$F$23<>\"\",'Anneau budgétaire'!$F$7:$F$23/Income,\"\")","v":{"v":1.0456605088881143E-3,"d":"0%"}}]
[null,"Épicerie","Alimentation",{"v":100,"d":"100 $"},"Hebdomadaire",{"$f":"IF('Anneau budgétaire'!$D$7:$D$23>0,IF('Anneau budgétaire'!$E$7:$E$23<>\"\",ROUND(IF('Anneau budgétaire'!$E$7:$E$23=\"Mensuel\",'Anneau budgétaire'!$D$7:$D$23,IF('Anneau budgétaire'!$E$7:$E$23=\"Hebdomadaire\",'Anneau budgétaire'!$D$7:$D$23*4,IF('Anneau budgétaire'!$E$7:$E$23=\"Trimestrielle\",'Anneau budgétaire'!$D$7:$D$23/3,IF('Anneau budgétaire'!$E$7:$E$23=\"Tous les 6 mois\",'Anneau budgétaire'!$D$7:$D$23/6,IF('Anneau budgétaire'!$E$7:$E$23=\"Annuel\",'Anneau budgétaire'!$D$7:$D$23/12,IF('Anneau budgétaire'!$E$7:$E$23=\"Aux deux semaines\",'Anneau budgétaire'!$D$7:$D$23*2,IF('Anneau budgétaire'!$E$7:$E$23=\"Aux deux mois\",'Anneau budgétaire'!$D$7:$D$23/2,\"\"))))))),0),\"\"),\"\")","v":{"v":400,"d":"400 $"}},{"$f":"IF('Anneau budgétaire'!$F$7:$F$23<>\"\",'Anneau budgétaire'!$F$7:$F$23/Income,\"\")","v":{"v":0.06971070059254096,"d":"7%"}}]
[null,"Café","Alimentation",{"v":25,"d":"25 $"},"Hebdomadaire",{"$f":"IF('Anneau budgétaire'!$D$7:$D$23>0,IF('Anneau budgétaire'!$E$7:$E$23<>\"\",ROUND(IF('Anneau budgétaire'!$E$7:$E$23=\"Mensuel\",'Anneau budgétaire'!$D$7:$D$23,IF('Anneau budgétaire'!$E$7:$E$23=\"Hebdomadaire\",'Anneau budgétaire'!$D$7:$D$23*4,IF('Anneau budgétaire'!$E$7:$E$23=\"Trimestrielle\",'Anneau budgétaire'!$D$7:$D$23/3,IF('Anneau budgétaire'!$E$7:$E$23=\"Tous les 6 mois\",'Anneau budgétaire'!$D$7:$D$23/6,IF('Anneau budgétaire'!$E$7:$E$23=\"Annuel\",'Anneau budgétaire'!$D$7:$D$23/12,IF('Anneau budgétaire'!$E$7:$E$23=\"Aux deux semaines\",'Anneau budgétaire'!$D$7:$D$23*2,IF('Anneau budgétaire'!$E$7:$E$23=\"Aux deux mois\",'Anneau budgétaire'!$D$7:$D$23/2,\"\"))))))),0),\"\"),\"\")","v":{"v":100,"d":"100 $"}},{"$f":"IF('Anneau budgétaire'!$F$7:$F$23<>\"\",'Anneau budgétaire'!$F$7:$F$23/Income,\"\")","v":{"v":0.01742767514813524,"d":"2%"}}]
[null,"Matériel d'escalade","Divertissement",{"v":170,"d":"170 $"},"Annuel",{"$f":"IF('Anneau budgétaire'!$D$7:$D$23>0,IF('Anneau budgétaire'!$E$7:$E$23<>\"\",ROUND(IF('Anneau budgétaire'!$E$7:$E$23=\"Mensuel\",'Anneau budgétaire'!$D$7:$D$23,IF('Anneau budgétaire'!$E$7:$E$23=\"Hebdomadaire\",'Anneau budgétaire'!$D$7:$D$23*4,IF('Anneau budgétaire'!$E$7:$E$23=\"Trimestrielle\",'Anneau budgétaire'!$D$7:$D$23/3,IF('Anneau budgétaire'!$E$7:$E$23=\"Tous les 6 mois\",'Anneau budgétaire'!$D$7:$D$23/6,IF('Anneau budgétaire'!$E$7:$E$23=\"Annuel\",'Anneau budgétaire'!$D$7:$D$23/12,IF('Anneau budgétaire'!$E$7:$E$23=\"Aux deux semaines\",'Anneau budgétaire'!$D$7:$D$23*2,IF('Anneau budgétaire'!$E$7:$E$23=\"Aux deux mois\",'Anneau budgétaire'!$D$7:$D$23/2,\"\"))))))),0),\"\"),\"\")","v":{"v":14,"d":"14 $"}},{"$f":"IF('Anneau budgétaire'!$F$7:$F$23<>\"\",'Anneau budgétaire'!$F$7:$F$23/Income,\"\")","v":{"v":2.4398745207389336E-3,"d":"0%"}}]
[null,"Abonnement au gym","Divers",{"v":60,"d":"60 $"},"Mensuel",{"$f":"IF('Anneau budgétaire'!$D$7:$D$23>0,IF('Anneau budgétaire'!$E$7:$E$23<>\"\",ROUND(IF('Anneau budgétaire'!$E$7:$E$23=\"Mensuel\",'Anneau budgétaire'!$D$7:$D$23,IF('Anneau budgétaire'!$E$7:$E$23=\"Hebdomadaire\",'Anneau budgétaire'!$D$7:$D$23*4,IF('Anneau budgétaire'!$E$7:$E$23=\"Trimestrielle\",'Anneau budgétaire'!$D$7:$D$23/3,IF('Anneau budgétaire'!$E$7:$E$23=\"Tous les 6 mois\",'Anneau budgétaire'!$D$7:$D$23/6,IF('Anneau budgétaire'!$E$7:$E$23=\"Annuel\",'Anneau budgétaire'!$D$7:$D$23/12,IF('Anneau budgétaire'!$E$7:$E$23=\"Aux deux semaines\",'Anneau budgétaire'!$D$7:$D$23*2,IF('Anneau budgétaire'!$E$7:$E$23=\"Aux deux mois\",'Anneau budgétaire'!$D$7:$D$23/2,\"\"))))))),0),\"\"),\"\")","v":{"v":60,"d":"60 $"}},{"$f":"IF('Anneau budgétaire'!$F$7:$F$23<>\"\",'Anneau budgétaire'!$F$7:$F$23/Income,\"\")","v":{"v":0.010456605088881143,"d":"1%"}}]
[null,"Écouteurs","Divertissement",{"v":50,"d":"50 $"},"Annuel",{"$f":"IF('Anneau budgétaire'!$D$7:$D$23>0,IF('Anneau budgétaire'!$E$7:$E$23<>\"\",ROUND(IF('Anneau budgétaire'!$E$7:$E$23=\"Mensuel\",'Anneau budgétaire'!$D$7:$D$23,IF('Anneau budgétaire'!$E$7:$E$23=\"Hebdomadaire\",'Anneau budgétaire'!$D$7:$D$23*4,IF('Anneau budgétaire'!$E$7:$E$23=\"Trimestrielle\",'Anneau budgétaire'!$D$7:$D$23/3,IF('Anneau budgétaire'!$E$7:$E$23=\"Tous les 6 mois\",'Anneau budgétaire'!$D$7:$D$23/6,IF('Anneau budgétaire'!$E$7:$E$23=\"Annuel\",'Anneau budgétaire'!$D$7:$D$23/12,IF('Anneau budgétaire'!$E$7:$E$23=\"Aux deux semaines\",'Anneau budgétaire'!$D$7:$D$23*2,IF('Anneau budgétaire'!$E$7:$E$23=\"Aux deux mois\",'Anneau budgétaire'!$D$7:$D$23/2,\"\"))))))),0),\"\"),\"\")","v":{"v":4,"d":"4 $"}},{"$f":"IF('Anneau budgétaire'!$F$7:$F$23<>\"\",'Anneau budgétaire'!$F$7:$F$23/Income,\"\")","v":{"v":6.9710700592540956E-4,"d":"0%"}}]
[null,"Coupe de cheveux","Divers",{"v":70,"d":"70 $"},"Mensuel",{"$f":"IF('Anneau budgétaire'!$D$7:$D$23>0,IF('Anneau budgétaire'!$E$7:$E$23<>\"\",ROUND(IF('Anneau budgétaire'!$E$7:$E$23=\"Mensuel\",'Anneau budgétaire'!$D$7:$D$23,IF('Anneau budgétaire'!$E$7:$E$23=\"Hebdomadaire\",'Anneau budgétaire'!$D$7:$D$23*4,IF('Anneau budgétaire'!$E$7:$E$23=\"Trimestrielle\",'Anneau budgétaire'!$D$7:$D$23/3,IF('Anneau budgétaire'!$E$7:$E$23=\"Tous les 6 mois\",'Anneau budgétaire'!$D$7:$D$23/6,IF('Anneau budgétaire'!$E$7:$E$23=\"Annuel\",'Anneau budgétaire'!$D$7:$D$23/12,IF('Anneau budgétaire'!$E$7:$E$23=\"Aux deux semaines\",'Anneau budgétaire'!$D$7:$D$23*2,IF('Anneau budgétaire'!$E$7:$E$23=\"Aux deux mois\",'Anneau budgétaire'!$D$7:$D$23/2,\"\"))))))),0),\"\"),\"\")","v":{"v":70,"d":"70 $"}},{"$f":"IF('Anneau budgétaire'!$F$7:$F$23<>\"\",'Anneau budgétaire'!$F$7:$F$23/Income,\"\")","v":{"v":0.012199372603694667,"d":"1%"}}]
[null,"Jeux vidéo","Divertissement",{"v":100,"d":"100 $"},"Mensuel",{"$f":"IF('Anneau budgétaire'!$D$7:$D$23>0,IF('Anneau budgétaire'!$E$7:$E$23<>\"\",ROUND(IF('Anneau budgétaire'!$E$7:$E$23=\"Mensuel\",'Anneau budgétaire'!$D$7:$D$23,IF('Anneau budgétaire'!$E$7:$E$23=\"Hebdomadaire\",'Anneau budgétaire'!$D$7:$D$23*4,IF('Anneau budgétaire'!$E$7:$E$23=\"Trimestrielle\",'Anneau budgétaire'!$D$7:$D$23/3,IF('Anneau budgétaire'!$E$7:$E$23=\"Tous les 6 mois\",'Anneau budgétaire'!$D$7:$D$23/6,IF('Anneau budgétaire'!$E$7:$E$23=\"Annuel\",'Anneau budgétaire'!$D$7:$D$23/12,IF('Anneau budgétaire'!$E$7:$E$23=\"Aux deux semaines\",'Anneau budgétaire'!$D$7:$D$23*2,IF('Anneau budgétaire'!$E$7:$E$23=\"Aux deux mois\",'Anneau budgétaire'!$D$7:$D$23/2,\"\"))))))),0),\"\"),\"\")","v":{"v":100,"d":"100 $"}},{"$f":"IF('Anneau budgétaire'!$F$7:$F$23<>\"\",'Anneau budgétaire'!$F$7:$F$23/Income,\"\")","v":{"v":0.01742767514813524,"d":"2%"}}]
[null,"Vêtements","Divers",{"v":500,"d":"500 $"},"Annuel",{"$f":"IF('Anneau budgétaire'!$D$7:$D$23>0,IF('Anneau budgétaire'!$E$7:$E$23<>\"\",ROUND(IF('Anneau budgétaire'!$E$7:$E$23=\"Mensuel\",'Anneau budgétaire'!$D$7:$D$23,IF('Anneau budgétaire'!$E$7:$E$23=\"Hebdomadaire\",'Anneau budgétaire'!$D$7:$D$23*4,IF('Anneau budgétaire'!$E$7:$E$23=\"Trimestrielle\",'Anneau budgétaire'!$D$7:$D$23/3,IF('Anneau budgétaire'!$E$7:$E$23=\"Tous les 6 mois\",'Anneau budgétaire'!$D$7:$D$23/6,IF('Anneau budgétaire'!$E$7:$E$23=\"Annuel\",'Anneau budgétaire'!$D$7:$D$23/12,IF('Anneau budgétaire'!$E$7:$E$23=\"Aux deux semaines\",'Anneau budgétaire'!$D$7:$D$23*2,IF('Anneau budgétaire'!$E$7:$E$23=\"Aux deux mois\",'Anneau budgétaire'!$D$7:$D$23/2,\"\"))))))),0),\"\"),\"\")","v":{"v":42,"d":"42 $"}},{"$f":"IF('Anneau budgétaire'!$F$7:$F$23<>\"\",'Anneau budgétaire'!$F$7:$F$23/Income,\"\")","v":{"v":7.3196235622168E-3,"d":"1%"}}]

{"sheet":"Data","index":2,"n_rows":10,"n_cols":5,"rows_kept":10,"hidden":true}
["Cette feuille devrait rester cachée"]
["Catégories","Montant par catégorie","Pourcentage du total","Fréquence","Compte d'épargne"]
["Maison",{"$f":"IF(SUMIF('Anneau budgétaire'!$C$7:$C$23,\"Maison\",'Anneau budgétaire'!$F$7:$F$23)>0,SUMIF('Anneau budgétaire'!$C$7:$C$23,\"Maison\",'Anneau budgétaire'!$F$7:$F$23),NA())","v":{"v":1660,"d":"1,660 $"}},{"$f":"IF(B3>0,B3/Income,\"\")","v":{"v":0.289299407459045,"d":"29%"}},"Hebdomadaire",{"$f":"Income-SUM('Anneau budgétaire'!$F$7:$F$23)","v":{"v":2777,"d":"2,777 $"}}]
["Divertissement",{"$f":"IF(SUMIF('Anneau budgétaire'!$C$7:$C$23,\"Divertissement\",'Anneau budgétaire'!$F$7:$F$23)>0,SUMIF('Anneau budgétaire'!$C$7:$C$23,\"Divertissement\",'Anneau budgétaire'!$F$7:$F$23),NA())","v":{"v":188,"d":"188 $"}},{"v":0.03276402927849425,"d":"3%"},"Mensuel"]
["Transport",{"$f":"IF(SUMIF('Anneau budgétaire'!$C$7:$C$23,\"Transport\",'Anneau budgétaire'!$F$7:$F$23)>0,SUMIF('Anneau budgétaire'!$C$7:$C$23,\"Transport\",'Anneau budgétaire'!$F$7:$F$23),NA())","v":{"v":350,"d":"350 $"}},{"v":0.06099686301847333,"d":"6%"},"Trimestrielle"]
["Alimentation",{"$f":"IF(SUMIF('Anneau budgétaire'!$C$7:$C$23,\"Alimentation\",'Anneau budgétaire'!$F$7:$F$23)>0,SUMIF('Anneau budgétaire'!$C$7:$C$23,\"Alimentation\",'Anneau budgétaire'!$F$7:$F$23),NA())","v":{"v":500,"d":"500 $"}},{"v":0.08713837574067619,"d":"9%"},"Tous les 6 mois"]
["Divers",{"$f":"IF(SUMIF('Anneau budgétaire'!$C$7:$C$23,\"Divers\",'Anneau budgétaire'!$F$7:$F$23)>0,SUMIF('Anneau budgétaire'!$C$7:$C$23,\"Divers\",'Anneau budgétaire'!$F$7:$F$23),NA())","v":{"v":263,"d":"263 $"}},{"v":0.04583478563959568,"d":"5%"},"Annuel"]
["Compte d'épargne",{"$f":"IF(E3>0,E3,NA())","v":{"v":2777,"d":"2,777 $"}},{"v":0.4839665388637156,"d":"48%"},"Aux deux semaines"]
[{"$nulls":3},"Aux deux mois"]
[null,"TOTAL :",{"$f":"SUM(C3:C8)","v":{"v":1,"d":"100%"}}]